Cogmind - Beta 10.2 *** ADVENTURER MODE // 2022.02.14 @ 10:41:26 Player: Kaz Result: Destroyed by G-34 Mercenary with Small Laser Performance ------------- Evolutions (1) 500 Regions Visited (2) 400 Robots Destroyed (28) 140 Value Destroyed (562) 562 Prototype IDs (1) 20 Alien Tech Used (0) 0 Bonus (0) 0 TOTAL SCORE: 1622 Bonus ------- None Cogmind --------- Core Integrity 0/400 Matter 188/450 Energy 99/100 System Corruption 0% Temperature Cool (12) Movement Core (600) Ox11 Location -9/Materials Parts ------- > --- POWER (1) -------- (None) > --- PROPULSION (2) --- (None) > --- UTILITY (4) ------ Large Storage Unit Large Storage Unit Large Matter Pod > --- WEAPON (2) ------- (None) > --- INVENTORY (16) --- Ion Engine Heavy Ion Engine Medium Storage Unit Large Matter Pod (0) Peak State ------------ > --- POWER ------------ Heavy Ion Engine > --- PROPULSION ------- Wheel Compact Wheel > --- UTILITY ---------- Large Storage Unit Large Storage Unit Large Matter Pod > --- WEAPON ----------- Light Assault Rifle Light Assault Rifle > --- INVENTORY -------- Ion Engine Medium Storage Unit Large Matter Pod Light Assault Rifle Light Assault Rifle [Rating: 10] Favorites ----------- Power Ion Engine Engine Ion Engine Propulsion Compact Wheel Leg Aluminum Leg Wheel Compact Wheel Utility Large Storage Unit Storage Large Storage Unit Weapon Assault Rifle Ballistic Gun Assault Rifle Build | -11 -10 -9 ------- Run | Scr Mat Mat Slots Evolved 2 | . . 2 Power . | . . . Propulsion . | . . . Utility 2 | . . 2 Weapon . | . . . Parts Attached 19 | 6 6 7 Power 3 | 1 1 1 Engine 3 | 1 1 1 Core . | . . . Reactor . | . . . Propulsion 5 | 2 2 1 Treads . | . . . Leg 1 | . . 1 Wheel 4 | 2 2 . Hover . | . . . Flight . | . . . Utility 5 | 1 3 1 Device . | . . . Storage 5 | 1 3 1 Processor . | . . . Hackware . | . . . Protection . | . . . Artifact . | . . . Weapon 6 | 2 . 4 Energy Gun . | . . . Energy Cannon . | . . . Ballistic Gun 6 | 2 . 4 Ballistic Cannon . | . . . Launcher . | . . . Special Weapon . | . . . Impact Weapon . | . . . Slashing Weapon . | . . . Piercing Weapon . | . . . Special Melee Weapon . | . . . Unidentified Prototypes 1 | . . 1 Parts Lost 10 | . . 10 Power 1 | . . 1 Propulsion 3 | . . 3 Utility . | . . . Weapon 6 | . . 6 Highest Loss Streak 7 | . . 7 Average Slot Usage (%) 91 | . 98 74 Engine 12 | . 14 9 Wheel 24 | . 28 16 Storage 27 | . 26 29 Ballistic Gun 25 | . 28 18 Naked Turns . | . . . Heaviest Build 45 | 13 41 45 Greatest Support 32 | 26 32 26 Greatest Overweight (x) 11 | 1 1 11 Average Overweight (x) . | . . 1 Largest Inventory Capacity 16 | 6 16 16 Average Capacity 13 | 5 13 16 Most Carried 7 | 4 5 7 Average Carried 2 | . 1 4 Final Capacity 16 | 6 16 16 Final Carried 4 | . 4 4 Class Distribution -------------------- 100% | Mutant Dominant Class ---------------- Mutant | -10/Materials Mutant | -9/Materials Resources | -11 -10 -9 ----------- Run | Scr Mat Mat Matter Collected 688 | 213 318 157 Remotely . | . . . Salvage Created 934 | . 563 371 Parts 63 | . 39 24 Haulers Intercepted 4 | . 2 2 Recyclers Shooed 1 | . 1 . Parts Field Recycled . | . . . Retrieved Matter . | . . . Parts Self-Destructed . | . . . Prevented . | . . . Kills | -11 -10 -9 ------- Run | Scr Mat Mat Combat Hostiles Destroyed 18 | . 12 6 Guns 18 | . 12 6 Classes Destroyed 8 | . 7 1 Worker 1 | . 1 . Builder 1 | . 1 . Hauler 4 | . 2 2 Recycler 1 | . 1 . Operator 1 | . . 1 Watcher 2 | . 1 1 Swarmer 6 | . 6 . Grunt 12 | . 6 6 Best Kill Streak 9 | . 9 4 Combat Bots Only 3 | . 3 2 Max Kills in Single Turn 2 | . 2 1 Gunslinging 1 | . 1 . Exploded . | . . . Melee . | . . . Uniques/NPCs Destroyed . | . . . Combat | -11 -10 -9 -------- Run | Scr Mat Mat Damage Taken 1683 | . 392 1291 Core 480 | . 75 405 Absorbed by Shields . | . . . Core Remaining (%) 85 | 100 70 . Volleys Fired 108 | . 59 49 Largest 2 | . 2 2 Hottest 40 | . 40 40 Shots Fired 207 | . 118 89 Gun 207 | . 118 89 Cannon . | . . . Launcher . | . . . Special . | . . . Kinetic 207 | . 118 89 Thermal . | . . . Explosive . | . . . Electromagnetic . | . . . Robot Hit Streak 39 | . 17 39 Robot Miss Streak 3 | . 3 1 Penetration Max . | . . . Secondary Targets 4 | . 3 1 Max Gunslinging Chain 1 | . 1 1 Shots Hit Robots 160 | . 81 79 Core Hits 54 | . 28 26 Critical Hits 3 | . . 3 Critical Kills 1 | . . 1 Critical Parts Destroyed 1 | . . 1 Melee Attacks . | . . . Impact . | . . . Slashing . | . . . Piercing . | . . . Sneak Attacks . | . . . Combat Hostiles . | . . . Follow-up Attacks . | . . . Damage Inflicted 1640 | . 1030 610 Guns 1635 | . 1025 610 Cannons . | . . . Explosions . | . . . Melee . | . . . Ramming 5 | . 5 . Kinetic 1635 | . 1025 610 Thermal . | . . . Explosive . | . . . Electromagnetic . | . . . Impact . | . . . Slashing . | . . . Piercing . | . . . Highest Corruption 1 | . 1 . Average Corruption 1 | . 1 . Corruption Purged . | . . . Effects 1 | . 1 . Message Errors 1 | . 1 . Overload Shots . | . . . Overflow Damage . | . . . Projectiles . | . . . Explosions . | . . . Melee . | . . . Knockbacks . | . . . Impact . | . . . Kinetic . | . . . Secondary . | . . . Self-Inflicted Damage 2 | . 2 . Shots . | . . . Rammed 1 | . 1 . Targets Rammed 1 | . 1 . Kicked . | . . . Crushed . | . . . Highest Temperature 25 | . 4 25 Average Temperature 9 | . 2 10 Received Heat Transfer 900 | . 228 672 Siege Activations . | . . . Robots Corrupted . | . . . Combat Hostiles . | . . . Parts Fried . | . . . Impact Corruptions . | . . . Robots Melted . | . . . Combat Hostiles . | . . . Parts Melted . | . . . Heat Transferred . | . . . Parts Sabotaged . | . . . Parts Stolen . | . . . Parts Stripped . | . . . Power Chain Reactions . | . . . Missiles Intercepted . | . . . Alert | -11 -10 -9 ------- Run | Scr Mat Mat Peak Influence 267 | . 267 249 Initial 67 | . . 67 Average 124 | . 123 146 Maximum Alert Level 1 | . 1 1 Low Security (%) 76 | 100 73 79 Level 1 23 | . 26 20 Level 2 . | . . . Level 3 . | . . . Level 4 . | . . . Level 5 . | . . . High Security . | . . . Max Security . | . . . Squads Dispatched 5 | . 3 2 Investigation 4 | . 3 1 Extermination . | . . . Reinforcement 1 | . . 1 Assault . | . . . Garrison . | . . . Intercept . | . . . Construction Impeded . | . . . Haulers Reinforced . | . . . Stealth | -11 -10 -9 --------- Run | Scr Mat Mat Distress Signals 1 | . 1 . Communications Jammed . | . . . Distress Signals . | . . . Times Spotted 35 | . 19 16 Peak Tracking Total 5 | . 5 5 Tactical Retreats 1 | . . 1 Traps | -11 -10 -9 ------- Run | Scr Mat Mat Traps Triggered 3 | . 3 . Indirectly . | . . . Trap Hack Attempts . | . . . Triggered . | . . . Disarmed . | . . . Reprogrammed . | . . . Reused . | . . . Traps Extracted . | . . . Installed . | . . . Triggered . | . . . Machines | -11 -10 -9 ---------- Run | Scr Mat Mat Machines Disabled . | . . . Max in Single Turn . | . . . Machines Sabotaged . | . . . Garrisons Compromised . | . . . Overloaded Fab Kills . | . . . Fab Network Shutdowns . | . . . Hacking | -11 -10 -9 --------- Run | Scr Mat Mat Machines Accessed 4 | . 3 1 Terminals 4 | . 3 1 Fabricators . | . . . Repair Stations . | . . . Recycling Units . | . . . Scanalyzers . | . . . Garrison Access . | . . . Total Hacks 11 | . 8 3 Successful 9 | . 6 3 Failed 2 | . 2 . Catastrophic . | . . . Database Lockouts . | . . . Manual . | . . . Terminals 11 | . 8 3 Fabricators . | . . . Repair Stations . | . . . Recycling Units . | . . . Scanalyzers . | . . . Garrison Access . | . . . Terminal Hacks 9 | . 6 3 Record 1 | . 1 . Locate Traps 1 | . . 1 Dispatch Records 1 | . . 1 Recall Investigation 1 | . 1 . Hauler Manifests 1 | . 1 . Registered Prototypes 1 | . 1 . Zone Layout 3 | . 2 1 Fabricator Hacks . | . . . Repair Station Hacks . | . . . Recycling Unit Hacks . | . . . Scanalyzer . | . . . Garrison Access Hacks . | . . . Unauthorized Hacks . | . . . Terminals . | . . . Fabricators . | . . . Repair Stations . | . . . Recycling Units . | . . . Scanalyzers . | . . . Garrison Access . | . . . Data Cores Recovered . | . . . Used . | . . . Hacking Detections 3 | . 2 1 Full Trace Events 3 | . 2 1 Feedback Events . | . . . Feedback Blocked . | . . . Robot Schematics Acquired . | . . . Robots Built . | . . . Matter . | . . . Time . | . . . Total Robot Build Rating . | . . . Part Schematics Acquired . | . . . Parts Built . | . . . Matter . | . . . Time . | . . . Total Part Build Rating . | . . . Parts Repaired . | . . . Time . | . . . Parts Recycled . | . . . Recycled Matter . | . . . Retrieved Matter . | . . . Retrieved Components . | . . . Parts Scanalyzed . | . . . Part Schematics Acquired . | . . . Parts Damaged . | . . . Bothacking | -11 -10 -9 ------------ Run | Scr Mat Mat Used RIF Installer . | . . . Robots Hacked . | . . . Non-combat . | . . . Combat . | . . . Robot Hacks Applied . | . . . Relay Couplers Released . | . . . Robots Rewired . | . . . Allies Hacked . | . . . Hacks Repelled . | . . . Allies | -11 -10 -9 -------- Run | Scr Mat Mat Total Allies . | . . . Largest Group . | . . . Highest-Rated Group . | . . . Highest-Rated Ally . | . . . Total Orders . | . . . Ally Attacks . | . . . Total Damage . | . . . Kills . | . . . Allies Corrupted . | . . . Allies Melted . | . . . Intel | -11 -10 -9 ------- Run | Scr Mat Mat Robot Analysis Total . | . . . Derelict Logs Recovered . | . . . Drone Launches . | . . . Drone Recoveries . | . . . Exploration | -11 -10 -9 ------------- Run | Scr Mat Mat Turns Passed 964 | 43 632 289 Spaces Moved 591 | 36 419 136 Core 12 | 10 . 2 Treads . | . . . Legs 10 | . . 10 Wheels 569 | 26 419 124 Hover . | . . . Flight . | . . . Fastest Speed 50 | 50 90 100 Average Speed 105 | 88 103 115 Slowest Speed 600 | 100 110 600 Overloaded Moves . | . . . Propulsion Burnouts . | . . . Robots Hopped . | . . . Cave-ins Triggered . | . . . Exploration Rate (%) 33 | 3 80 17 Regions Visited 2 Branch Regions . Pre-discovered Areas . | . . . Known Exits Taken . | . . . Unknown Exits Taken 2 | 1 1 . Scrap Searched . | . . . Spaces Dug . | . . . Terrain Destroyed . | . . . Melee . | . . . Projectile . | . . . AOE . | . . . Terrain Rammed . | . . . Walls Destroyed . | . . . Machines Disabled . | . . . Actions | -11 -10 -9 --------- Run | Scr Mat Mat Total 743 | 47 497 199 Wait 1 | . . 1 Move 589 | 35 418 136 Hop . | . . . Pick Up 21 | 6 9 6 Fast Attach . | . . . Attach 13 | 6 1 6 Detach . | . . . Swap 6 | . 5 1 Drop 4 | . 4 . Fire 108 | . 59 49 Melee . | . . . Ram 1 | . 1 . Kick . | . . . Crush . | . . . Escape Stasis . | . . . Rewire . | . . . Trap . | . . . Miscellaneous . | . . . Route ------- -11/Scrapyard -10/Materials (discovered 4 exits: *Mat x3 / [*Min]) -9/Materials History --------- Turn | Location | Event 8 | -11/Scrapyard | Discovered new exit (range 15) 44 | -11/Scrapyard | Entered Materials 201 | -10/Materials | Discovered new exit (range 9) 315 | -10/Materials | Build established: Mutant 347 | -10/Materials | Discovered new exit (range 15) 565 | -10/Materials | Discovered new exit (range 16) 661 | -10/Materials | Discovered new exit (range 4) 676 | -10/Materials | Entered another Materials area 676 | -9/Materials | Evolved 2 slots: Utility x2 933 | -9/Materials | Core integrity fell below 50% 947 | -9/Materials | Core integrity fell below 20% 965 | -9/Materials | Destroyed by G-34 Mercenary with Small Laser Last Messages --------------- 00879_ U-05 Engineer lays Concrete. 00881_ G-34 Mercenary suffers critical hit. 00881_ Destroyed Aluminum Leg. 00881_ K-01 Serf collects debris. 00886_ G-34 Mercenary destroyed. 00888_ K-01 Serf collects debris. 00891_ G-47 Trooper destroyed. 00891_ Switching to secondary target: Y-45 Defender. 00891_ K-01 Serf collects debris. 00896_ Y-45 Defender suffers critical hit. 00899_ K-01 Serf collects debris. 00904_ Lgt. Assault Rifle destroyed. 00910_ K-01 Serf collects debris. 00915_ Com. Wheel destroyed. 00920_ K-01 Serf collects debris. 00926_ R-06 Scavenger collects Med. Storage Unit. 00926_ Hvy. Ion Engine destroyed. 00927_ Lgt. Assault Rifle destroyed. 00942_ Acquired Aluminum Leg. 00963_ Aluminum Leg destroyed. Map ----- +----------------------------------------------------+ | ?????????????????????????????????????????????????? | | ?????????????????????????????????????????????????? | | ?????????????????????????????????????????????????? | | ?????????????????????????????????????????????????? | | ?????????????????????????????????????????????????? | | ?????????????????????????????????????????????????? | | ?????????????????????????????????????????????????? | | ????????????????????????????????????????????????? | | #???????????????????????????????????????????????? | | #???????????????????????????????????????????????? | | #???????????????????????????????????????????????? | | #?????????????????????######????????????????????? | | #????????????????????##!!!!##????#??????????????? | | #?# ????????????#! !#??? #??????????????? | | #?#######????????????#! !#?? #??????????????? | | ####################### ## ####### ???????? | | %/% %= ! ?????? | | !!// * ! ?????? | | u = =%* =%[ ?????? | | ! ###################g####+######+### ??????? | | [#?????????????????# #??? ????????????????? | | ! * ! #?????????????????# #????" ???????????????? | | ! #?????????????????#*#????" #??????????????? | | ! #?????????????????#*#????? #??????????????? | | ####??????????????#*#?????? #??????????????? | | ??????????#@#???????#??????????????? | | ### ########??????????? #?????????????????????? | | # #???????????????? !#?????????????????????? | | # #?????????????? * #?????????????????????? | | # #????????????# #?????????????????????? | | " # ######???????# #?????????????????????? | | " # ???????# #?????????????????????? | | " ########???????# g #?????????????????????? | | #??????????????# g #?????????????????????? | | #??????????????#####+#####?????????????????????? | | ##########???????????????????????????????????????? | | ^^ ?????????????????????????????????? | | ^^ ?????????????????????????????????? | | ^^ ?????????????????????????????????? | | ###############??????????????????????????????????? | | ?????????#???????????????????????????????????????? | | ?????????#???????????????????????????????????????? | | ?????????#???????????????????????????????????????? | | ?????????#???????????????????????????????????????? | | ?????????????????????????????????????????????????? | | | | | | | | | | | +----------------------------------------------------+ Best States ------------- Heat Dissipation 28 Energy Generation 14 Energy Capacity 280 Matter Stores 300 Matter Capacity 450 Sight Range 16 Terrain Scan Density 10 Resistance: KI 20 Resistance: TH 20 Resistance: EX 20 Resistance: EM 20 Resistance: I 20 Resistance: S 20 Resistance: P 20 Evasion (%) 42 Offensive Hacking 10 Item Schematics ----------------- None Robot Schematics ------------------ None Fabricated ------------ Nothing Alien Tech Used ----------------- None Achievements -------------- None Challenges ------------ None Game ------ Seed DefensePoweredWell Manual? 0 Play Time 00:13:34 Cumulative 81.6 hours Start 2022.02.14 @ 10:31:22 End 2022.02.14 @ 10:41:26 Sessions 1 Manual Loads 0 Difficulty Adventurer Special Mode None Game No. 52 Rogue 46 Adventurer 6 Explorer 0 Win Type - Total 0 Types 0/0/0/0/0/0/0/0/0 Lore% 9 Gallery% 33 Achievement% 22 Wizard Run 0 Options --------- ASCII 0 Keyboard 0 Movement Mouse Keybinds 0 Fullscreen 1 Font 24/Smallcaps Map View 113x50 Tactical HUD 1 Map Filters NONE Filters NONE Steam 1 RUN: 37322f4f-7f3a-42ef-b85b-f773d9a6d34f